fUSD/lending_fUSD_20250127
["ID","MTS","AMOUNT","RATE_DAILY","PERIOD"]
[350637492,1738011033573,-2105.08181452,0.000157,2]
[350637493,1738011033583,-223.35042044,0.00015703,2]
[350637494,1738011033592,-176.69,0.00015753,2]
[350637495,1738011033601,-1117.0,0.0001576,2]
[350637496,1738011033610,-520.26724375,0.00015773,2]
[350637497,1738011033619,-500.0,0.00015773,2]
[350637498,1738011033629,-1323.6444917,0.00015789,2]
[350637499,1738011033638,-323.5,0.0001579,2]
[350637500,1738011033647,-323.5,0.0001579,2]
[350637501,1738011033657,-323.5,0.0001579,2]
[350637502,1738011033666,-323.5,0.0001579,2]
[350637503,1738011033675,-23.38144762,0.0001579,2]
[350637504,1738011033687,-300.11855238,0.0001579,2]
[350637505,1738011033696,-323.5,0.0001579,2]
[350637506,1738011033706,-323.5,0.0001579,2]
[350637507,1738011033716,-323.5,0.0001579,2]
[350637508,1738011033725,-323.5,0.0001579,2]
[350637509,1738011033734,-323.5,0.0001579,2]
[350637510,1738011033744,-323.5,0.0001579,2]
[350637511,1738011033754,-323.5,0.0001579,2]
[350637512,1738011033763,-323.5,0.0001579,2]
[350637513,1738011033772,-323.5,0.0001579,2]
[350637514,1738011033782,-323.5,0.0001579,2]
[350637515,1738011033791,-323.5,0.0001579,2]
[350637516,1738011033801,-323.5,0.0001579,2]
[350637517,1738011033811,-323.5,0.0001579,2]
[350637518,1738011033821,-323.5,0.0001579,2]
[350637519,1738011033830,-323.5,0.0001579,2]
[350637520,1738011033840,-323.5,0.0001579,2]
[350637521,1738011033849,-323.5,0.0001579,2]
[350637522,1738011033859,-323.5,0.0001579,2]
[350637523,1738011033868,-323.5,0.0001579,2]
[350637524,1738011033877,-323.5,0.0001579,2]
[350637525,1738011033888,-323.5,0.0001579,2]
[350637526,1738011033897,-323.5,0.0001579,2]
[350637527,1738011033907,-323.5,0.0001579,2]
[350637528,1738011033916,-323.5,0.0001579,2]
[350637529,1738011033926,-323.5,0.0001579,2]
[350637530,1738011033936,-323.5,0.0001579,2]
[350637531,1738011033946,-323.5,0.0001579,2]
[350637532,1738011033956,-323.5,0.0001579,2]
[350637533,1738011033968,-323.5,0.0001579,2]
[350637534,1738011033978,-323.5,0.0001579,2]
[350637535,1738011033987,-323.5,0.0001579,2]
[350637536,1738011033997,-323.5,0.0001579,2]
[350637537,1738011034008,-323.5,0.0001579,2]
[350637538,1738011034018,-323.5,0.0001579,2]
[350637539,1738011034029,-323.5,0.0001579,2]
[350637540,1738011034043,-323.5,0.0001579,2]
[350637541,1738011034053,-323.5,0.0001579,2]
[350637542,1738011034063,-323.5,0.0001579,2]
[350637543,1738011034073,-323.5,0.0001579,2]
[350637544,1738011034083,-323.5,0.0001579,2]
[350637545,1738011034093,-323.5,0.0001579,2]
[350637546,1738011034103,-323.5,0.0001579,2]
[350637547,1738011034112,-323.5,0.0001579,2]
[350637548,1738011034122,-323.5,0.0001579,2]
[350637549,1738011034132,-323.5,0.0001579,2]
[350637550,1738011034142,-323.5,0.0001579,2]
[350637551,1738011034152,-323.5,0.0001579,2]
[350637552,1738011034162,-323.5,0.0001579,2]
[350637553,1738011034172,-323.5,0.0001579,2]
[350637554,1738011034181,-323.5,0.0001579,2]
[350637555,1738011034191,-323.5,0.0001579,2]
[350637556,1738011034200,-323.5,0.0001579,2]
[350637557,1738011034210,-323.5,0.0001579,2]
[350637558,1738011034220,-323.5,0.0001579,2]
[350637559,1738011034230,-323.5,0.0001579,2]
[350637560,1738011034239,-323.5,0.0001579,2]
[350637561,1738011034249,-323.5,0.0001579,2]
[350637562,1738011034263,-323.5,0.0001579,2]
[350637563,1738011034273,-323.5,0.0001579,2]
[350637564,1738011034283,-323.5,0.0001579,2]
[350637565,1738011034292,-323.5,0.0001579,2]
[350637566,1738011034539,-323.5,0.0001579,2]
[350637567,1738011034549,-323.5,0.0001579,2]
[350637568,1738011034559,-323.5,0.0001579,2]
[350637569,1738011034568,-323.5,0.0001579,2]
[350637570,1738011034578,-323.5,0.0001579,2]
[350637571,1738011034587,-323.5,0.0001579,2]
[350637572,1738011034598,-500.0,0.00015798,2]
[350637573,1738011034607,-500.0,0.00015798,2]
[350637574,1738011034617,-500.0,0.00015798,2]
[350637575,1738011034627,-500.0,0.00015798,2]
[350637576,1738011034637,-575.77664103,0.00015798,2]
[350637577,1738011034646,-764.04,0.00015798,2]
[350637578,1738011034655,-500.0,0.00015798,2]
[350637579,1738011034664,-500.0,0.00015798,2]
[350637580,1738011034674,-500.0,0.00015798,2]
[350637581,1738011034683,-500.0,0.00015798,2]
[350637582,1738011034692,-500.0,0.00015798,2]
[350637583,1738011034701,-500.0,0.00015798,2]
[350637584,1738011034711,-500.0,0.00015798,2]
[350637585,1738011034721,-500.0,0.00015798,2]
[350637586,1738011034730,-500.0,0.00015798,2]
[350637587,1738011034740,-500.0,0.00015798,2]
[350637588,1738011034749,-500.0,0.00015798,2]
[350637589,1738011034758,-500.0,0.00015798,2]
[350637590,1738011034768,-500.0,0.00015798,2]
[350637591,1738011034777,-558.29,0.00015798,2]
[350637592,1738011034786,-500.0,0.00015798,2]
[350637593,1738011034796,-500.0,0.00015798,2]
[350637594,1738011034805,-500.0,0.00015798,2]
[350637595,1738011034814,-500.0,0.00015798,2]
[350637596,1738011034823,-274.90972104,0.00015798,2]
[350637597,1738011034833,-500.0,0.00015798,2]
[350637598,1738011034842,-500.0,0.00015798,2]
[350637599,1738011034852,-500.0,0.00015798,2]
[350637600,1738011034861,-500.0,0.00015798,2]
[350637601,1738011034871,-500.0,0.00015798,2]
[350637602,1738011034881,-500.0,0.00015798,2]
[350637603,1738011034890,-500.0,0.00015798,2]
[350637604,1738011034900,-500.0,0.00015798,2]
[350637605,1738011034910,-253.32717972,0.00015798,2]
[350637606,1738011034919,-500.0,0.00015798,2]
[350637607,1738011034929,-500.0,0.00015798,2]
[350637608,1738011034938,-1020.25567286,0.00015799,5]
[350637609,1738011034947,-500.0,0.00015799,2]
[350637610,1738011034957,-500.0,0.00015799,2]
[350637611,1738011034967,-500.0,0.00015799,2]
[350637612,1738011034977,-500.0,0.00015799,2]
[350637613,1738011034986,-500.0,0.00015799,2]
[350637614,1738011034996,-500.0,0.00015799,2]
[350637615,1738011035005,-360.48,0.00015799,2]
[350637616,1738011035014,-500.0,0.00015799,2]
[350637617,1738011035023,-196.53,0.00015799,2]
[350637618,1738011035033,-500.0,0.00015799,2]
[350637619,1738011035043,-500.0,0.00015799,2]
[350637620,1738011035052,-500.0,0.00015799,2]
[350637621,1738011035061,-500.0,0.00015799,2]
[350637622,1738011035071,-500.0,0.00015799,2]
[350637623,1738011035080,-500.0,0.00015799,2]
[350637624,1738011035089,-500.0,0.00015799,2]
[350637625,1738011035098,-500.0,0.00015799,2]
[350637626,1738011035107,-300.67,0.00015799,2]
[350637627,1738011035116,-500.0,0.00015799,2]
[350637628,1738011035126,-500.0,0.00015799,2]
[350637629,1738011035135,-500.0,0.00015799,2]
[350637630,1738011035145,-519.3148659,0.00015799,2]
[350637631,1738011035155,-764.04,0.00015799,2]
[350637632,1738011035164,-764.04,0.00015799,2]
[350637633,1738011035174,-764.04,0.00015799,2]
[350637634,1738011035183,-764.04,0.00015799,2]
[350637635,1738011035192,-764.04,0.00015799,2]
[350637636,1738011035202,-764.04,0.00015799,2]
[350637637,1738011035212,-764.04,0.00015799,2]
[350637638,1738011035223,-764.04,0.00015799,2]
[350637639,1738011035232,-764.04,0.00015799,2]
[350637640,1738011035241,-764.04,0.00015799,2]
[350637641,1738011035250,-764.04,0.00015799,2]
[350637642,1738011035260,-764.04,0.00015799,2]
[350637643,1738011035272,-764.04,0.00015799,2]
[350637644,1738011035282,-764.04,0.00015799,2]
[350637645,1738011035291,-666.14049707,0.00015799,2]
[350637646,1738011035320,-323.5,0.0001579,2]
[350637647,1738011035330,-323.5,0.0001579,2]
[350637648,1738011035339,-96.3999875,0.00015799,2]
[350637649,1738011035350,-1.49951543,0.00015799,2]
[350637650,1738011035359,-626.79517379,0.00015799,2]
[350637656,1738011037583,-500.0,0.00014999,2]
[350637657,1738011037593,-323.5,0.0001579,2]
[350637658,1738011037602,-323.5,0.0001579,2]
[350637659,1738011037611,-155.9,0.0001579,2]
[350637660,1738011039668,-167.6,0.0001579,2]
[350637661,1738011039678,-323.5,0.0001579,2]
[350637662,1738011039688,-323.5,0.0001579,2]
[350637663,1738011039697,-323.5,0.0001579,2]
[350637664,1738011039707,-323.5,0.0001579,2]
[350637665,1738011039719,-323.5,0.0001579,2]
[350637666,1738011039728,-323.5,0.0001579,2]
[350637667,1738011039737,-323.5,0.0001579,2]
[350637668,1738011039746,-323.5,0.0001579,2]
[350637669,1738011039756,-323.5,0.0001579,2]
[350637670,1738011039765,-323.5,0.0001579,2]
[350637671,1738011039774,-323.5,0.0001579,2]
[350637672,1738011039783,-323.5,0.0001579,2]
[350637673,1738011039792,-323.5,0.0001579,2]
[350637674,1738011039802,-323.5,0.0001579,2]
[350637675,1738011039812,-323.5,0.0001579,2]
[350637676,1738011039820,-27.43854341,0.0001579,2]
[350637677,1738011039832,-296.06145659,0.0001579,2]
[350637678,1738011039841,-323.5,0.0001579,2]
[350637679,1738011039850,-323.5,0.0001579,2]
[350637680,1738011039859,-323.5,0.0001579,2]
[350637681,1738011039869,-323.5,0.0001579,2]
[350637682,1738011039878,-323.5,0.0001579,2]
[350637683,1738011039888,-323.5,0.0001579,2]
[350637684,1738011039897,-500.0,0.00015798,2]
[350637685,1738011039906,-500.0,0.00015798,2]
[350637686,1738011039916,-500.0,0.00015798,2]
[350637687,1738011039925,-500.0,0.00015798,2]
[350637688,1738011039934,-500.0,0.00015798,2]
[350637689,1738011039943,-500.0,0.00015798,2]
[350637690,1738011039953,-500.0,0.00015798,2]
[350637691,1738011039963,-500.0,0.00015798,2]
[350637692,1738011039975,-500.0,0.00015798,2]
[350637693,1738011039984,-500.0,0.00015798,2]
[350637694,1738011039994,-514.41,0.00015798,2]
[350637695,1738011040004,-500.0,0.00015798,2]
[350637696,1738011040013,-500.0,0.00015798,2]
[350637697,1738011040023,-500.0,0.00015798,2]
[350637698,1738011040032,-432.47861561,0.00015798,2]
[350637699,1738011040041,-137.24482621,0.00015799,2]
[350637700,1738011040050,-567.80510159,0.00015799,2]
[350637701,1738011040066,-196.23489841,0.00015799,2]
[350637702,1738011040075,-764.04,0.00015799,2]
[350637703,1738011040083,-764.04,0.00015799,2]
[350637704,1738011040092,-764.04,0.00015799,2]
[350637705,1738011040102,-764.04,0.00015799,2]
[350637706,1738011040111,-764.0441287,0.00015799,2]
[350637707,1738011040121,-500.0,0.00015799,2]
[350637708,1738011040130,-500.0,0.00015799,2]
[350637709,1738011040140,-500.0,0.00015799,2]
[350637710,1738011040149,-500.0,0.00015799,2]
[350637711,1738011040159,-500.0,0.00015799,2]
[350637712,1738011040168,-500.0,0.00015799,2]
[350637713,1738011040178,-266.22266525,0.00015799,2]
[350637714,1738011040187,-500.0,0.00015799,2]
[350637715,1738011040196,-500.0,0.00015799,2]
[350637716,1738011040206,-500.0,0.00015799,2]
[350637717,1738011040215,-500.0,0.00015799,2]
[350637718,1738011040230,-561.48416832,0.00015799,2]
[350637719,1738011040239,-500.0,0.00015799,2]
[350637720,1738011040248,-500.0,0.00015799,2]
[350637721,1738011040258,-500.0,0.00015799,2]
[350637722,1738011040272,-500.0,0.00015799,2]
[350637723,1738011040281,-500.0,0.00015799,2]
[350637724,1738011040290,-500.0,0.00015799,2]
[350637725,1738011040300,-500.0,0.00015799,2]
[350637726,1738011040311,-500.0,0.00015799,2]
[350637727,1738011040320,-500.0,0.00015799,2]
[350637728,1738011040329,-500.0,0.00015799,2]
[350637729,1738011040339,-500.0,0.00015799,2]
[350637730,1738011040349,-500.0,0.00015799,2]
[350637731,1738011040358,-500.0,0.00015799,2]
[350637732,1738011040367,-500.0,0.00015799,2]
[350637733,1738011040377,-500.0,0.00015799,2]
[350637734,1738011040386,-500.0,0.00015799,2]
[350637735,1738011040395,-500.0,0.00015799,2]
[350637736,1738011040405,-505.23,0.00015799,2]
[350637737,1738011040414,-500.0,0.00015799,2]
[350637738,1738011040424,-500.0,0.00015799,2]
[350637739,1738011040434,-500.0,0.00015799,2]
[350637740,1738011040444,-500.0,0.00015799,2]
[350637741,1738011040453,-500.0,0.00015799,2]
[350637742,1738011040463,-500.0,0.00015799,2]
[350637743,1738011040476,-500.0,0.00015799,2]
[350637744,1738011040486,-500.0,0.00015799,2]
[350637745,1738011040495,-500.0,0.00015799,2]
[350637746,1738011040504,-500.0,0.00015799,2]
[350637747,1738011040514,-500.0,0.00015799,2]
[350637748,1738011040523,-500.0,0.00015799,2]
[350637749,1738011040533,-500.0,0.00015799,2]
[350637750,1738011040543,-500.0,0.00015799,2]
[350637751,1738011040552,-500.0,0.00015799,2]
[350637752,1738011040562,-500.0,0.00015799,2]
[350637753,1738011040571,-500.0,0.00015799,2]
[350637754,1738011040580,-500.0,0.00015799,2]
[350637755,1738011040590,-500.0,0.00015799,2]
[350637756,1738011040600,-500.0,0.00015799,2]
[350637757,1738011040609,-500.0,0.00015799,2]
[350637758,1738011040619,-318.89,0.00015799,2]
[350637759,1738011040629,-500.0,0.00015799,2]
[350637760,1738011040638,-500.0,0.00015799,2]
[350637761,1738011040648,-500.0,0.00015799,2]
[350637762,1738011040658,-500.0,0.00015799,2]
[350637763,1738011040668,-500.0,0.00015799,2]
[350637764,1738011040678,-500.0,0.00015799,2]
[350637765,1738011040687,-500.0,0.00015799,2]
[350637766,1738011040697,-500.0,0.00015799,2]
[350637767,1738011040707,-500.0,0.00015799,2]
[350637768,1738011040719,-500.0,0.00015799,2]
[350637769,1738011040729,-500.0,0.00015799,2]
[350637770,1738011040739,-500.0,0.00015799,2]
[350637771,1738011040749,-500.0,0.00015799,2]
[350637772,1738011040759,-500.0,0.00015799,2]
[350637773,1738011040769,-500.0,0.00015799,2]
[350637774,1738011040779,-470.90948799,0.00015799,2]
[350637775,1738011040789,-992.7906187,0.00015799,2]
[350637776,1738011040799,-118413.38399568,0.00015799,2]
[350637777,1738011040989,-101350.0,0.00015799,2]
[350637778,1738011042249,-500.0,0.00014999,2]
[350637779,1738011042304,-500.0,0.00015798,2]
[350637780,1738011042315,-86.12132001,0.00015798,2]
[350637799,1738011042702,-413.87867999,0.00015798,2]
[350637801,1738011042715,-500.0,0.00015798,2]
[350637804,1738011042732,-500.0,0.00015798,2]
[350637806,1738011042745,-500.0,0.00015798,2]
[350637808,1738011042757,-461.61,0.00015798,2]
[350637810,1738011042768,-22872.01132001,0.00015799,2]
[350637812,1738011042783,-491.05254001,0.00015799,2]
[350637909,1738011045761,-434.2914798,0.000157,2]
[350637910,1738011045773,-1133.4085202,0.00015799,2]
[350637911,1738011045786,-605.801278,0.00015799,2]
[350637912,1738011045870,-780.80162402,0.00015799,2]
[350637913,1738011045884,-295.93499994,0.00015799,2]
[350637914,1738011045982,-874.090001,0.00015799,2]
[350637915,1738011045996,-2039.48499,0.00015799,2]
[350637927,1738011815467,158.3411676,0.00010137,10]
[350638151,1738012232064,-279.6,0.00010137,2]
[350638152,1738012232074,-1025.74094271,0.00011827,2]
[350638153,1738012232083,-1025.74094271,0.00011834,2]
[350638154,1738012232092,-200.0,0.00011836,2]
[350638155,1738012232101,-200.0,0.00011846,2]
[350638156,1738012232111,-3742.64852456,0.00011849,2]
[350638157,1738012232125,-200.0,0.00011854,2]
[350638158,1738012232134,-3742.64852456,0.00011855,2]
[350638159,1738012232143,-1025.74094271,0.00011865,2]
[350638160,1738012232152,-1025.74094271,0.00011872,2]
[350638161,1738012232162,-1025.74094271,0.00011886,2]
[350638162,1738012232171,-3742.64852456,0.00011893,2]
[350638163,1738012232180,-3742.64852456,0.00011896,2]
[350638164,1738012232189,-210.56305478,0.000119,2]
[350638165,1738012232198,-3742.64852456,0.00011903,2]
[350638166,1738012232207,-200.0,0.00011907,2]
[350638167,1738012232216,-2533.5,0.00012,2]
[350638168,1738012232226,-250.67,0.00012,2]
[350638169,1738012232235,-1256.58,0.00012412,2]
[350638170,1738012232244,-252.0,0.00012534,2]
[350638171,1738012232253,-252.0,0.000126,2]
[350638172,1738012232262,-1000.0,0.00013068,2]
[350638173,1738012232271,-500.0,0.00013068,2]
[350638174,1738012232279,-252.0,0.00013609,2]
[350638175,1738012232288,-491.89,0.00013699,2]
[350638176,1738012232297,-200.0,0.00013734,2]
[350638177,1738012232306,-176.69,0.00013765,2]
[350638178,1738012232315,-2398.5,0.0001381,2]
[350638179,1738012232323,-150.0,0.00013934,2]
[350638180,1738012232332,-250.0,0.00013952,2]
[350638181,1738012232341,-500.0,0.00013956,2]
[350638182,1738012232350,-200.0,0.00014027,2]
[350638184,1738012232359,-500.0,0.00014155,2]
[350638186,1738012232371,-23900.0,0.00014388,2]
[350638188,1738012232380,-1000.0,0.00014438,2]
[350638190,1738012232389,-500.0,0.00014438,2]
[350638192,1738012232397,-494.78,0.00014503,2]
[350638194,1738012232406,-1256.58,0.00014676,2]
[350638196,1738012232415,-260.29,0.0001474,2]
[350638198,1738012232424,-1000.0,0.0001474,2]
[350638200,1738012232433,-4000.0,0.00014889,2]
[350638202,1738012232442,-500.0,0.00014999,7]
[350638204,1738012232450,-527.50941637,0.00014999,2]
[350638206,1738012232459,-500.0,0.00014999,2]
[350638208,1738012232468,-227.25380005,0.00014999,2]
[350638210,1738012232476,-507.21336057,0.00014999,2]
[350638212,1738012232485,-508.90354847,0.00014999,2]
[350638214,1738012232495,-500.0,0.00014999,2]
[350638216,1738012232503,-500.0,0.00014999,2]
[350638218,1738012232512,-500.0,0.00014999,2]
[350638220,1738012232520,-500.0,0.00014999,2]
[350638222,1738012232530,-434.61689322,0.00014999,2]
[350638224,1738012232538,-174.65242854,0.00014999,2]
[350638226,1738012232547,-500.0,0.00014999,2]
[350638228,1738012232555,-500.0,0.00014999,2]
[350638230,1738012232564,-500.0,0.00014999,2]
[350638232,1738012232573,-500.0,0.00014999,2]
[350638234,1738012232582,-200.73980959,0.00014999,2]
[350638236,1738012232591,-550.0,0.00015,2]
[350638237,1738012232599,-550.0,0.00015,2]
[350638239,1738012232609,-200.0,0.00015173,2]
[350638241,1738012232619,-299.99,0.0001531,2]
[350638243,1738012232631,-159.80619342,0.0001538,2]
[350638245,1738012232640,-181.35692948,0.0001538,2]
[350638247,1738012232648,-452.9481506,0.0001538,2]
[350638249,1738012232657,-289.5276532,0.0001538,2]
[350638251,1738012232667,-3730.76089996,0.0001538,2]
[350638253,1738012232675,-189.67,0.00015383,2]
[350638255,1738012232684,-2421.59097023,0.00015447,6]
[350638257,1738012232693,-500.0,0.00015479,2]
[350638258,1738012232701,-500.0,0.00015479,2]
[350638260,1738012232711,-500.0,0.00015479,2]
[350638262,1738012232720,-500.0,0.00015479,2]
[350638264,1738012232729,-364.72943239,0.00015479,2]
[350638266,1738012232738,-500.0,0.00015479,2]
[350638268,1738012232747,-500.0,0.00015479,2]
[350638270,1738012232755,-500.0,0.00015479,2]
[350638272,1738012232764,-496.39530935,0.00015479,2]
[350638274,1738012232773,-143429.80564013,0.0001548,2]
[350638277,1738012232784,-4753.755005,0.0001548,2]
[350638279,1738012232795,-2380.26231143,0.0001548,2]
[350638281,1738012232805,-437.7779378,0.0001548,2]
[350638283,1738012232816,-348.89010204,0.0001548,2]
[350638285,1738012232826,-5995.53092008,0.0001548,2]
[350638287,1738012232837,-686.96413459,0.0001548,2]
[350638371,1738012238001,-2246.0518439,0.0001548,2]
[350638372,1738012238060,-335.412,0.0001548,2]
[350638373,1738012238172,-261.087,0.0001548,2]
[350638374,1738012238286,-639.9688452,0.0001548,2]
[350638570,1738012239911,-10324.0,0.0001548,2]
[350638575,1738012239923,-30609.0,0.0001548,2]
[350638578,1738012239934,-273328.22254236,0.0001548,2]
[350638586,1738012239968,-157513.7981176,0.0001548,2]
[350638590,1738012239978,-165872.8034872,0.0001548,2]
[350638593,1738012239989,-7492.8999836,0.0001548,2]
[350638596,1738012240000,-337.91385831,0.0001548,2]
[350638603,1738012240025,-516.6161,0.0001548,2]
[350638615,1738012240083,-265.107,0.0001548,2]
[350638991,1738012243135,-21011.9969961,0.0001548,2]
[350639275,1738012245984,-3023209.10378634,0.0001548,2]
[350639285,1738012246095,-29323.67626755,0.0001548,2]
[350639291,1738012246209,-10703.0,0.0001548,2]
[350639298,1738012246267,-11603.00016947,0.0001548,2]
[350639301,1738012246278,-76350.00000007,0.0001548,2]
[350639307,1738012246325,-5092.974184,0.0001548,2]
[350639309,1738012246336,-3336.2,0.0001548,2]
[350639315,1738012593983,-2200.0,0.000144,5]
[350639316,1738012594017,-4400.0,0.000145,5]
[350639317,1738012594042,-2200.0,0.000146,5]
[350639318,1738012936371,315.3,0.0001,5]
[350639319,1738012970197,153.0,8.198e-05,2]
[350639322,1738013158570,-139678.56081274,0.0001,2]
[350639323,1738013158593,-336.76,0.00010137,2]
[350639324,1738013158615,-246.43319464,0.00011832,2]
[350639325,1738013158637,-246.43319464,0.00011836,2]
[350639326,1738013158659,-200.0,0.00011837,2]
[350639327,1738013158683,-760.68518765,0.0001185,2]
[350639328,1738013158707,-760.68518765,0.00011853,2]
[350639329,1738013158728,-200.0,0.00011864,2]
[350639330,1738013158751,-200.0,0.00011873,2]
[350639331,1738013158774,-246.43319464,0.00011874,2]
[350639332,1738013158796,-246.43319464,0.00011878,2]
[350639333,1738013158821,-760.68518765,0.00011894,2]
[350639334,1738013158845,-760.68518765,0.00011913,2]
[350639335,1738013158869,-760.68518765,0.00011913,2]
[350639336,1738013158890,-246.43319464,0.00011914,2]
[350639337,1738013158911,-2280.15,0.00012,2]
[350639339,1738013219312,30399.50911276,0.0001188,2]
[350639345,1738013248944,2052.13,0.00012,2]
[350639347,1738013277476,498.609151,0.0001,2]
[350639348,1738013281182,120586.70987769,0.0001,2]
[350639349,1738013286044,3598.0,0.00011999,2]
[350639909,1738013432164,-1130.92,0.00012445,2]
[350639910,1738013432174,-251.66,0.00012445,2]
[350639911,1738013432185,-250.02,0.00012445,2]
[350639912,1738013432194,-253.21,0.00012445,2]
[350639913,1738013432204,-254.12,0.00012445,2]
[350639914,1738013432214,-249.92,0.00012445,2]
[350639915,1738013432223,-500.0,0.00012904,2]
[350639916,1738013432233,-300.0,0.00013067,2]
[350639917,1738013432242,-900.0,0.00013068,2]
[350639918,1738013432251,-500.0,0.00013068,2]
[350639919,1738013432261,-393.51,0.00013699,2]
[350639920,1738013432270,-1805.71,0.00013752,2]
[350639921,1738013432282,-2194.29,0.00013752,2]
[350639922,1738013432291,-358.76,0.00013784,2]
[350639923,1738013432300,-150.0,0.0001382,2]
[350639924,1738013432309,-201.69,0.00013862,2]
[350639925,1738013432318,-166.965,0.00013864,2]
[350639926,1738013432330,-333.035,0.00013864,2]
[350639927,1738013432339,-500.0,0.00013875,2]
[350639928,1738013432348,-200.0,0.00013891,2]
[350639929,1738013432358,-250.0,0.00013925,2]
[350639930,1738013432367,-221.09,0.00013957,2]
[350639931,1738013432377,-200.0,0.00014009,2]
[350639932,1738013432386,-1500.0,0.00014195,2]
[350639933,1738013432395,-250.0,0.0001424,2]
[350639934,1738013432405,-63.12500014,0.00014308,2]
[350639935,1738013432416,-1050.99700662,0.00014308,2]
[350639936,1738013432426,-1112.97276622,0.00014308,2]
[350639937,1738013432435,-494.31416785,0.0001433,2]
[350639938,1738013432446,-293.49962424,0.0001433,2]
[350639939,1738013432456,-74.32620791,0.0001433,2]
[350639940,1738013432465,-23900.0,0.00014334,2]
[350639941,1738013432474,-1000.0,0.00014379,2]
[350639942,1738013432483,-165.87,0.00014379,2]
[350639943,1738013432492,-1700.0,0.000144,5]
[350639944,1738013432501,-900.0,0.00014438,2]
[350639945,1738013432510,-150.0,0.00014499,2]
[350639946,1738013432519,-3500.0,0.000145,5]
[350639947,1738013432529,-475.00090807,0.00014599,2]
[350639948,1738013432539,-5300.0,0.000146,5]
[350639949,1738013432548,-500.0,0.0001463,2]
[350639950,1738013432557,-584.80242668,0.000147,5]
[350639951,1738013432569,-6415.19757332,0.000147,5]
[350639952,1738013432578,-1130.92,0.00014709,2]
[350639953,1738013432587,-8800.0,0.000148,5]
[350639954,1738013432596,-1700.0,0.000149,5]
[350639955,1738013432606,-550.0,0.00015,2]
[350639956,1738013432614,-550.0,0.00015,2]
[350639957,1738013432623,-18124.12846053,0.00015,2]
[350639958,1738013432632,-1371.02864742,0.00015,2]
[350639959,1738013432643,-13528.63117965,0.00015,2]
[350639960,1738013432652,-9275.0,0.00015,2]
[350639961,1738013432661,-2215.93258516,0.00015,2]
[350639962,1738013432669,-814.19600418,0.00015,2]
[350639963,1738013432678,-201.99,0.00015059,2]
[350639964,1738013432688,-300.0,0.00015094,2]
[350639965,1738013432697,-200.0,0.00015163,2]
[350639966,1738013432706,-1089.46583681,0.0001517,2]
[350639967,1738013432715,-1117.46200743,0.0001517,2]
[350639968,1738013432724,-1088.73386036,0.0001517,2]
[350639969,1738013432734,-301.3513,0.0001528,2]
[350639970,1738013432743,-209.49226698,0.0001528,2]
[350639971,1738013432752,-209.49226694,0.00015291,2]
[350639972,1738013432761,-209.49226694,0.00015302,2]
[350639973,1738013432771,-209.49226694,0.00015313,2]
[350639974,1738013432780,-209.49226694,0.00015324,2]
[350639975,1738013432790,-3890.0,0.00015325,2]
[350639976,1738013432799,-1530.9744,0.0001533,2]
[350639977,1738013432809,-209.49226694,0.00015336,2]